fUSD/lending_fUSD_20260315
["ID","MTS","AMOUNT","RATE_DAILY","PERIOD"]
[408434619,1773612632591,-2695.4341197,0.00019554,2]
[408434620,1773612632601,-500.0,0.00019573,2]
[408434621,1773612632610,-500.0,0.00019573,2]
[408434622,1773612632620,-2695.4341197,0.00019597,2]
[408434623,1773612632629,-168.0,0.00019599,2]
[408434624,1773612632639,-700.0,0.000196,7]
[408434625,1773612632649,-364.319145,0.000196,2]
[408434626,1773612632658,-856.135081,0.000196,2]
[408434627,1773612632667,-1000.0,0.00019611,2]
[408434628,1773612632677,-3155.6109,0.00019611,2]
[408434629,1773612632686,-2695.4341197,0.00019641,2]
[408434630,1773612632697,-402.66,0.00019643,2]
[408434631,1773612632706,-500.0,0.00019683,2]
[408434632,1773612632716,-500.0,0.00019683,2]
[408434633,1773612632725,-500.0,0.00019683,2]
[408434634,1773612632734,-500.0,0.00019683,2]
[408434635,1773612632743,-500.0,0.00019683,2]
[408434636,1773612632753,-500.0,0.00019683,2]
[408434637,1773612632762,-500.0,0.00019683,2]
[408434638,1773612632771,-500.0,0.00019683,2]
[408434639,1773612632780,-500.0,0.00019683,2]
[408434640,1773612632790,-500.0,0.00019683,2]
[408434641,1773612632799,-475.12005917,0.00019683,2]
[408434642,1773612632808,-500.0,0.00019683,2]
[408434643,1773612632817,-500.0,0.00019683,2]
[408434644,1773612632826,-159.4231015,0.00019683,2]
[408434645,1773612632835,-379.38208096,0.00019683,2]
[408434646,1773612632845,-245.25595034,0.00019683,2]
[408434647,1773612632854,-500.0,0.00019683,2]
[408434648,1773612632863,-500.0,0.00019683,2]
[408434649,1773612632872,-500.0,0.00019683,2]
[408434650,1773612632882,-500.0,0.00019683,2]
[408434651,1773612632892,-500.0,0.00019683,2]
[408434652,1773612632902,-500.0,0.00019683,2]
[408434653,1773612632912,-500.0,0.00019683,2]
[408434654,1773612632922,-500.0,0.00019683,2]
[408434655,1773612632932,-500.0,0.00019683,2]
[408434656,1773612632943,-500.0,0.00019683,2]
[408434657,1773612632952,-500.0,0.00019683,2]
[408434658,1773612632962,-500.0,0.00019683,2]
[408434659,1773612632971,-500.0,0.00019683,2]
[408434660,1773612632980,-407.06012968,0.00019683,2]
[408434661,1773612632990,-500.0,0.00019683,2]
[408434662,1773612632999,-500.0,0.00019683,2]
[408434663,1773612633008,-500.0,0.00019683,2]
[408434664,1773612633017,-500.0,0.00019683,2]
[408434665,1773612633027,-500.0,0.00019683,2]
[408434666,1773612633035,-500.0,0.00019683,2]
[408434667,1773612633046,-500.0,0.00019683,2]
[408434668,1773612633054,-500.0,0.00019683,2]
[408434669,1773612633064,-500.0,0.00019683,2]
[408434670,1773612633073,-2695.4341197,0.00019684,2]
[408434671,1773612633083,-168.0,0.00019686,2]
[408434672,1773612633093,-1000.0,0.000197,7]
[408434673,1773612633102,-500.0,0.0001971,2]
[408434674,1773612633112,-1275.58,0.0001971,2]
[408434675,1773612633126,-2695.4341197,0.00019727,2]
[408434676,1773612633135,-2695.4341197,0.0001977,2]
[408434677,1773612633144,-2500.0,0.00019799,2]
[408434678,1773612633154,-1200.0,0.000198,7]
[408434679,1773612633165,-1039.59,0.000198,2]
[408434680,1773612633174,-2695.4341197,0.00019814,2]
[408434681,1773612633184,-2695.4341197,0.00019857,2]
[408434682,1773612633195,-283.92312536,0.00019873,2]
[408434683,1773612633204,-500.0,0.00019873,2]
[408434684,1773612633214,-703.22729358,0.00019898,2]
[408434685,1773612633224,-12984.40545035,0.00019898,2]
[408434686,1773612633233,-175.53959451,0.00019898,2]
[408434687,1773612633242,-5000.0,0.00019898,2]
[408434688,1773612633251,-12984.40545026,0.00019898,2]
[408434689,1773612633261,-12984.40545026,0.00019898,2]
[408434690,1773612633273,-12984.40545026,0.00019899,2]
[408434691,1773612633283,-5520.48756695,0.00019899,2]
[408434692,1773612633296,-887.77170059,0.00019899,2]
[408434693,1773612633307,-676.60347514,0.00019899,2]
[408434694,1773612633319,-695.92687277,0.00019899,2]
[408434698,1773612638142,-374.15950572,0.00019899,2]
[408434699,1773612638158,-4829.45632909,0.00019899,2]
[408434700,1773612638167,-500.0,0.00019899,2]
[408434701,1773612638176,-1275.58,0.00019899,2]
[408434702,1773612638185,-500.0,0.00019899,2]
[408434703,1773612638196,-500.0,0.00019899,2]
[408434704,1773612638205,-500.0,0.00019899,2]
[408434705,1773612638214,-500.0,0.00019899,2]
[408434706,1773612638223,-500.0,0.00019899,2]
[408434707,1773612638232,-500.0,0.00019899,2]
[408434708,1773612638241,-500.0,0.00019899,2]
[408434709,1773612638249,-500.0,0.00019899,2]
[408434710,1773612638258,-500.0,0.00019899,2]
[408434711,1773612638267,-500.0,0.00019899,2]
[408434712,1773612638276,-175.5395945,0.00019899,2]
[408434713,1773612638284,-500.0,0.00019899,2]
[408434714,1773612638294,-500.0,0.00019899,2]
[408434715,1773612638302,-12984.40545026,0.00019899,2]
[408434716,1773612638311,-4861.43990062,0.00019899,2]
[408434717,1773612638322,-1962.24702114,0.00019899,2]
[408434718,1773612638333,-3182.18965859,0.00019899,2]
[408434719,1773612638344,-1197.6039703,0.00019899,2]
[408434720,1773612638355,-609.60079959,0.00019899,2]
[408434721,1773612638366,-440.84103682,0.00019899,2]
[408434766,1773612643419,-1169.28,0.00019899,2]
[408434767,1773612643428,-333.61867055,0.00019899,2]
[408434768,1773612643439,-396.86439265,0.00019899,2]
[408434770,1773612643449,-203.9597412,0.000199,2]
[408434785,1773612646144,-12780.44570906,0.000199,2]
[408434786,1773612646166,-12984.40545026,0.000199,2]
[408434787,1773612646184,-758.4807666,0.000199,2]
[408434788,1773612646195,-200.0,0.000199,7]
[408434789,1773612646205,-2695.4341197,0.000199,2]
[408434790,1773612646215,-3374.52537666,0.000199,2]
[408434791,1773612646225,-380.43488627,0.000199,2]
[408434792,1773612646235,-12984.40545026,0.000199,2]
[408434793,1773612646247,-175.5395945,0.000199,2]
[408434794,1773612646258,-183.55468146,0.000199,2]
[408434795,1773612646269,-961.21263265,0.000199,2]
[408434796,1773612646281,-579.70556862,0.000199,2]
[408434797,1773612646294,-168.0,0.00019929,2]
[408434798,1773612646303,-500.0,0.00019973,2]
[408434799,1773612646319,-500.0,0.00019973,2]
[408434800,1773612646329,-500.92517317,0.00019973,2]
[408434801,1773612646340,-500.0,0.00019973,2]
[408434804,1773612646350,-500.0,0.00019973,2]
[408434805,1773612646518,-502.0907168,0.00019973,2]
[408434806,1773612646528,-500.0,0.00019973,2]
[408434807,1773612646538,-550.0891429,0.00019973,2]
[408434808,1773612646547,-297.01217445,0.00019973,2]
[408434810,1773612646557,-500.0,0.00019973,2]
[408434812,1773612646567,-500.0,0.00019973,2]
[408434813,1773612646576,-614.26815895,0.00019973,2]
[408434814,1773612646585,-500.0,0.00019973,2]
[408434815,1773612646594,-502.15971815,0.00019973,2]
[408434816,1773612646603,-500.0,0.00019973,2]
[408434817,1773612646612,-500.0,0.00019973,2]
[408434818,1773612646622,-500.0,0.00019973,2]
[408434819,1773612646631,-2864.1474936,0.0001998,2]
[408434820,1773612646641,-168.0,0.00019983,2]
[408434821,1773612646650,-228.18034199,0.0001999,2]
[408434822,1773612646660,-151.0,0.00019997,2]
[408434823,1773612646670,-568.15176415,0.00019997,2]
[408434824,1773612646680,-500.0,0.00019997,2]
[408434825,1773612646690,-375.39422666,0.00019997,2]
[408434826,1773612646700,-444.01161179,0.00019997,2]
[408434827,1773612646710,-500.0,0.00019997,2]
[408434828,1773612646720,-493.40804803,0.00019997,2]
[408434830,1773612646730,-160.18664368,0.00019997,2]
[408434831,1773612646740,-500.0,0.00019997,2]
[408434832,1773612646749,-500.0,0.00019997,2]
[408434833,1773612646760,-171.75805253,0.00019997,2]
[408434834,1773612646769,-1169.28,0.00019997,2]
[408434835,1773612646779,-1169.28,0.00019997,2]
[408434836,1773612646789,-7618.797429,0.00019998,2]
[408434837,1773612646799,-140529.7545807,0.00019998,2]
[408434838,1773612646808,-88790.09766951,0.00019998,2]
[408434839,1773612646833,-1235.32070367,0.00019998,2]
[408434840,1773612646846,-2136.79999992,0.00019998,2]
[408434841,1773612646860,-4086.48472366,0.00019998,2]
[408434842,1773612646876,-12806.40365672,0.00019998,2]
[408434855,1773613832262,-5533.0,0.000139,3]
[408434856,1773613832280,-300.97,0.0001452,2]
[408434857,1773613832292,-633.145,0.000147,5]
[408434858,1773613832305,-250.0,0.000147,5]
[408434859,1773613832316,-4649.855,0.000147,5]
[408434860,1773613832326,-2610.84742895,0.0001507,2]
[408434861,1773613832336,-820.21,0.00015714,2]
[408434862,1773613832345,-2000.0,0.00017633,2]
[408434863,1773613832354,-250.0,0.00017808,2]
[408434864,1773613832364,-200.0,0.00018276,2]
[408434865,1773613832373,-162.99,0.00018306,2]
[408434866,1773613832383,-266.14,0.00018311,2]
[408434867,1773613832392,-2468.91,0.00018448,2]
[408434868,1773613832401,-168.0,0.00018973,2]
[408434869,1773613832411,-500.0,0.00018999,2]
[408434870,1773613832422,-500.0,0.00018999,2]
[408434871,1773613832431,-500.0,0.00018999,2]
[408434873,1773613832440,-500.0,0.00018999,2]
[408434875,1773613832453,-500.0,0.00018999,2]
[408434876,1773613832463,-500.0,0.00018999,2]
[408434878,1773613832472,-500.0,0.00018999,2]
[408434880,1773613832481,-151.0,0.00018999,2]
[408434882,1773613832491,-500.0,0.00018999,2]
[408434885,1773613832501,-500.0,0.00018999,2]
[408434888,1773613832510,-621.8062782,0.00018999,2]
[408434891,1773613832522,-151.0,0.00019054,2]
[408434894,1773613832531,-168.0,0.00019095,2]
[408434897,1773613832540,-151.0,0.00019109,2]
[408434899,1773613832550,-151.0,0.00019164,2]
[408434902,1773613832560,-1109.0,0.00019174,2]
[408434905,1773613832570,-5000.0,0.0001921,2]
[408434907,1773613832580,-32482.0083,0.00019211,2]
[408434910,1773613832590,-151.0,0.00019219,2]
[408434912,1773613832599,-151.0,0.00019274,2]
[408434913,1773613832609,-271.95996386,0.00019293,2]
[408434915,1773613832619,-2500.0,0.00019311,2]
[408434917,1773613832628,-151.0,0.00019329,2]
[408434919,1773613832638,-1225.97094318,0.00019349,2]
[408434920,1773613832647,-9641.80898336,0.00019349,2]
[408434922,1773613832656,-188.76062357,0.00019384,2]
[408434923,1773613832666,-600.0,0.000194,7]
[408434924,1773613832676,-200.0,0.000194,7]
[408434925,1773613832685,-500.0,0.0001941,2]
[408434926,1773613832695,-500.0,0.0001941,2]
[408434927,1773613832704,-500.0,0.0001941,2]
[408434928,1773613832714,-501.88920658,0.0001941,2]
[408434929,1773613832724,-500.0,0.0001941,2]
[408434930,1773613832733,-1023.12,0.0001941,2]
[408434931,1773613832743,-211.18,0.0001941,2]
[408434932,1773613832753,-500.0,0.0001941,2]
[408434933,1773613832762,-500.0,0.0001941,2]
[408434934,1773613832772,-500.0,0.0001941,2]
[408434935,1773613832781,-502.23147236,0.0001941,2]
[408434936,1773613832791,-510.91763486,0.0001941,2]
[408434937,1773613832800,-500.0,0.0001941,2]
[408434938,1773613832809,-504.98137836,0.0001941,2]
[408434939,1773613832818,-1058.64999987,0.0001941,2]
[408434940,1773613832828,-9641.80898334,0.0001941,2]
[408434941,1773613832837,-500.0,0.0001941,2]
[408434942,1773613832847,-500.0,0.0001941,2]
[408434943,1773613832856,-500.0,0.0001941,2]
[408434944,1773613832865,-500.0,0.0001941,2]
[408434945,1773613832874,-500.0,0.0001941,2]
[408434946,1773613832884,-500.0,0.0001941,2]
[408434947,1773613832893,-500.0,0.0001941,2]
[408434948,1773613832903,-500.0,0.0001941,2]
[408434949,1773613832912,-500.0,0.0001941,2]
[408434950,1773613832922,-500.0,0.0001941,2]
[408434951,1773613832931,-500.0,0.0001941,2]
[408434952,1773613832940,-500.0,0.0001941,2]
[408434953,1773613832949,-500.0,0.0001941,2]
[408434954,1773613832959,-500.0,0.0001941,2]
[408434955,1773613832968,-500.0,0.0001941,2]
[408434956,1773613832978,-455.02498419,0.0001941,2]
[408434957,1773613832987,-265.1719086,0.0001941,2]
[408434958,1773613832996,-153.26467566,0.0001941,2]
[408434959,1773613833006,-500.0,0.0001941,2]
[408434960,1773613833015,-351.22,0.0001941,2]
[408434961,1773613833025,-168.0,0.00019449,2]
[408434962,1773613833037,-454.36752716,0.0001947,2]
[408434963,1773613833047,-371.47929677,0.0001947,2]
[408434964,1773613833057,-500.0,0.0001947,2]
[408434965,1773613833066,-500.0,0.0001947,2]
[408434966,1773613833076,-500.0,0.0001947,2]
[408434967,1773613833086,-445.21963351,0.0001947,2]
[408434968,1773613833095,-500.0,0.0001947,2]
[408434969,1773613833105,-270.30078311,0.0001947,2]
[408434970,1773613833114,-9641.80898334,0.00019471,2]
[408434971,1773613833124,-1302.0,0.000195,2]
[408434972,1773613833134,-1200.0,0.000195,7]
[408434973,1773613833145,-500.0,0.000195,7]
[408434974,1773613833154,-9641.80898334,0.00019533,2]
[408434975,1773613833163,-1031.7461,0.00019583,2]
[408434976,1773613833173,-1000.0,0.00019583,2]
[408434977,1773613833183,-9641.80898334,0.00019594,2]
[408434978,1773613833193,-1800.0,0.000196,7]
[408434979,1773613833209,-700.0,0.000196,7]
[408434980,1773613833218,-168.0,0.0001961,2]
[408434981,1773613833228,-168.0,0.00019626,2]
[408434982,1773613833237,-409.09110494,0.00019655,2]
[408434983,1773613833246,-9641.80898334,0.00019655,2]
[408434984,1773613833256,-211.18,0.00019684,2]
[408434985,1773613833265,-2400.0,0.000197,7]
[408434986,1773613833275,-1000.0,0.000197,7]
[408434987,1773613833289,-409.09110494,0.00019716,2]
[408434988,1773613833298,-9641.80898334,0.00019716,2]
[408434989,1773613833308,-1109.0,0.00019748,2]
[408434990,1773613833319,-409.09110494,0.00019778,2]
[408434991,1773613833328,-9641.80898334,0.00019778,2]
[408434992,1773613833337,-326.0,0.0001979,2]
[408434993,1773613833347,-3000.0,0.000198,7]
[408434994,1773613833357,-1200.0,0.000198,7]
[408434995,1773613833367,-168.0,0.00019803,2]
[408434996,1773613833376,-409.09110494,0.00019839,2]
[408434997,1773613833387,-9641.80898334,0.00019839,2]
[408434998,1773613833396,-1000.0,0.00019878,2]
[408434999,1773613833405,-1000.0,0.00019878,2]
[408435000,1773613833415,-1000.0,0.00019878,2]
[408435001,1773613833424,-1000.0,0.00019878,2]
[408435002,1773613833434,-1000.0,0.00019878,2]
[408435003,1773613833444,-1000.0,0.00019878,2]
[408435004,1773613833456,-1000.0,0.00019878,2]
[408435005,1773613833465,-2785.97422248,0.0001989,2]
[408435006,1773613833474,-5000.0,0.0001989,2]
[408435007,1773613833483,-250.0,0.0001989,2]
[408435008,1773613833495,-2785.97422248,0.00019895,2]
[408435009,1773613833504,-409.09110494,0.000199,2]
[408435010,1773613833514,-600.0,0.000199,7]
[408435011,1773613833524,-200.0,0.000199,7]
[408435012,1773613833535,-9641.80898334,0.000199,2]
[408435013,1773613833544,-183.55468145,0.000199,2]
[408435014,1773613833554,-2785.97422248,0.000199,2]
[408435015,1773613833564,-4121.42232031,0.000199,2]
[408435016,1773613833573,-2923.69473016,0.000199,2]
[408435017,1773613833583,-430.87230195,0.000199,2]
[408435018,1773613833592,-1384.3055912,0.000199,2]
[408435019,1773613833601,-211.18,0.00019958,2]
[408435020,1773613833611,-500.0,0.00019973,2]
[408435021,1773613833620,-500.0,0.00019973,2]
[408435022,1773613833629,-500.0,0.00019989,2]
[408435023,1773613833638,-500.0,0.00019989,2]
[408435024,1773613833648,-500.0,0.00019989,2]
[408435025,1773613833658,-500.0,0.00019989,2]
[408435026,1773613833667,-515.52448038,0.00019989,2]
[408435027,1773613833677,-1023.12,0.00019989,2]
[408435028,1773613833686,-1023.12,0.00019989,2]
[408435029,1773613833696,-500.0,0.00019989,2]
[408435030,1773613833705,-8009.3567182,0.0001999,2]
[408435031,1773613833714,-137555.83592421,0.0001999,2]
[408435032,1773613833728,-11297.35855583,0.0001999,2]
[408435035,1773613838291,-353.139,0.000131,2]
[408435036,1773613838406,-1953.96784258,0.000131,2]
[408435037,1773613838418,-1608.52302594,0.000131,2]
[408435038,1773613838431,-1191.77479547,0.000131,2]
[408435039,1773613838442,-883.70093147,0.000131,2]
[408435042,1773613838641,-2270.89933468,0.000131,2]
[408435043,1773613838653,-421.12,0.000131,2]
[408435044,1773613838664,-54177.87506986,0.000131,2]
[408435045,1773613838674,-190.70150428,0.000199,2]
[408435046,1773613838683,-183060.95916782,0.0001999,2]
[408435063,1773613843359,-353.535,0.0001999,2]
[408435064,1773613843418,-358.86110122,0.0001999,2]
[408435065,1773613843677,-424.0217879,0.0001999,2]
[408435080,1773613846507,-1000.0,0.00019311,2]
[408435081,1773613846517,-166929.23077012,0.0001999,2]
[408435082,1773613846526,-1410.3390574,0.0001999,2]
[408435083,1773613846535,-3201.6009141,0.0001999,2]
[408435084,1773613846545,-9588.2477861,0.0001999,2]
[408435085,1773613846554,-5714.0980718,0.0001999,2]
[408435086,1773613846563,-109285.3828476,0.0001999,2]
[408435087,1773613846572,-4846.4681633,0.0001999,2]
[408435088,1773613846581,-452.84458428,0.0001999,2]
[408435089,1773613846591,-452.84458428,0.0001999,2]
[408435090,1773613846600,-452.84458428,0.0001999,2]
[408435091,1773613846609,-151.0,0.00019995,2]
[408435092,1773613846618,-151.0,0.00019997,2]
[408435094,1773613846627,-500.0,0.00019997,2]
[408435095,1773613846636,-1023.12,0.00019997,2]
[408435097,1773613846645,-1023.12,0.00019997,2]
[408435098,1773613846654,-156.0,0.00019998,3]
[408435099,1773613846664,-977.0,0.00019998,2]
[408435100,1773613846673,-385.0221004,0.00019999,2]
[408435101,1773613846682,-300.0,0.00019999,2]
[408435102,1773613846691,-300.0,0.00019999,2]
[408435103,1773613846700,-685.06941575,0.00019999,2]
[408435104,1773613846709,-300.0,0.00019999,2]
[408435105,1773613846718,-174.75800875,0.00019999,2]
[408435106,1773613846727,-1023.12,0.00019999,2]
[408435107,1773613846736,-1023.12,0.00019999,2]
[408435108,1773613846746,-1023.12,0.00019999,2]
[408435109,1773613846755,-1023.12,0.00019999,2]
[408435110,1773613846768,-1023.12,0.00019999,2]
[408435111,1773613846778,-1023.12,0.00019999,2]
[408435112,1773613846787,-1023.12,0.00019999,2]
[408435113,1773613846796,-1023.12,0.00019999,2]
[408435114,1773613846805,-1023.12,0.00019999,2]
[408435115,1773613846814,-1023.12,0.00019999,2]
[408435116,1773613846823,-1023.12,0.00019999,2]
[408435117,1773613846832,-1023.12,0.00019999,2]
[408435118,1773613846841,-1023.12,0.00019999,2]
[408435119,1773613846850,-1023.12,0.00019999,2]
[408435120,1773613846860,-1023.12,0.00019999,2]
[408435121,1773613846869,-1023.12,0.00019999,2]
[408435122,1773613846878,-1023.12,0.00019999,2]
[408435123,1773613846887,-1023.12,0.00019999,2]
[408435124,1773613846896,-1023.20905965,0.00019999,2]
[408435125,1773613846906,-6072.0,0.0002,5]
[408435126,1773613846915,-6055.0,0.0002,5]
[408435127,1773613846923,-7141.0,0.0002,5]
[408435128,1773613846933,-934.73,0.0002,2]
[408435129,1773613846942,-4140684.30281086,0.0002,2]
[408435130,1773613846951,-3950.0,0.0002,2]
[408435131,1773613846960,-111457.06927163,0.0002,2]
[408435132,1773613846970,-2878.67769392,0.0002,2]
[408435133,1773613846979,-12992.76524703,0.0002,2]
[408435134,1773613846988,-150.0,0.0002,7]
[408435135,1773613846997,-907674.98648161,0.0002,2]
[408435136,1773613847006,-1541.45869117,0.0002,2]
[408435137,1773613847015,-177.44772318,0.0002,2]
[408435138,1773613847025,-2464.68,0.0002,2]
[408435139,1773613847035,-798876.28602026,0.0002,2]
[408435140,1773613847044,-1301.33332755,0.0002,2]
[408435141,1773613847054,-10202.1777819,0.0002,2]
[408435142,1773613847064,-1050.50833091,0.0002,2]
[408435143,1773613847073,-152.0,0.0002,2]
[408435144,1773613847082,-807.66699,0.0002,2]
[408435145,1773613847091,-151.0,0.0002,2]
[408435146,1773613847101,-151.0,0.0002,2]
[408435147,1773613847110,-151.0,0.0002,2]
[408435148,1773613847119,-200.0,0.0002,10]
[408435149,1773613847128,-151.0,0.0002,2]
[408435150,1773613847138,-151.0,0.0002,2]
[408435151,1773613847147,-151.0,0.0002,2]
[408435152,1773613847156,-151.0,0.0002,2]
[408435153,1773613847166,-151.0,0.0002,2]
[408435154,1773613847175,-5000.0,0.0002,2]
[408435155,1773613847184,-5000.0,0.0002,2]
[408435156,1773613847193,-5000.0,0.0002,2]
[408435157,1773613847202,-5000.0,0.0002,2]
[408435158,1773613847211,-5000.0,0.0002,2]
[408435159,1773613847220,-5000.0,0.0002,2]
[408435160,1773613847230,-2515.951026,0.0002,2]
[408435161,1773613847239,-2515.951026,0.0002,2]
[408435162,1773613847248,-2515.951026,0.0002,2]
[408435163,1773613847257,-2515.951026,0.0002,2]
[408435164,1773613847266,-2515.951026,0.0002,2]
[408435165,1773613847275,-2515.951026,0.0002,2]
[408435166,1773613847284,-2515.951026,0.0002,2]
[408435167,1773613847294,-2515.951026,0.0002,2]
[408435168,1773613847303,-2515.951026,0.0002,2]
[408435169,1773613847312,-2515.951026,0.0002,2]
[408435170,1773613847321,-2515.951026,0.0002,2]
[408435171,1773613847330,-151.0,0.0002,2]
[408435172,1773613847339,-2515.951026,0.0002,2]
[408435173,1773613847348,-151.0,0.0002,2]
[408435174,1773613847357,-151.0,0.0002,2]
[408435175,1773613847366,-151.0,0.0002,2]
[408435176,1773613847376,-154.108196,0.0002,2]
[408435177,1773613847386,-1109.0,0.00020028,2]
[408435178,1773613847395,-2000.0,0.00020037,2]
[408435179,1773613847404,-645.11,0.00020042,2]
[408435180,1773613847414,-168.0,0.00020046,2]
[408435181,1773613847423,-168.0,0.00020065,2]
[408435182,1773613847433,-349.35079043,0.0002009,2]
[408435183,1773613847442,-300.0,0.000201,10]
[408435184,1773613847454,-700.0,0.00020171,2]
[408435185,1773613847464,-807.667,0.000202,2]
[408435186,1773613847474,-211.18,0.00020232,2]
[408435187,1773613847483,-1039.59,0.0002026,2]
[408435188,1773613847492,-168.0,0.00020261,2]
[408435189,1773613847502,-168.0,0.00020286,2]
[408435190,1773613847514,-168.0,0.00020313,2]
[408435191,1773613847523,-1109.0,0.00020322,2]
[408435192,1773613847539,-168.0,0.00020326,2]
[408435193,1773613847548,-168.0,0.00020388,2]
[408435194,1773613847557,-807.66699,0.000204,2]
[408435195,1773613847567,-166.66,0.00020454,2]
[408435196,1773613847576,-211.21,0.00020506,2]
[408435197,1773613847584,-402.66,0.00020536,2]
[408435198,1773613847593,-807.667,0.000206,2]
[408435199,1773613847601,-168.0,0.00020616,2]
[408435200,1773613847610,-168.0,0.0002071,2]
[408435201,1773613847619,-153.96,0.00020798,2]
[408435202,1773613847628,-807.66699,0.000208,2]
[408435203,1773613847637,-168.0,0.00020843,2]
[408435204,1773613847646,-168.0,0.00020859,2]
[408435205,1773613847654,-29681.0,0.00020942,2]
[408435206,1773613847663,-152.74,0.00020956,2]
[408435207,1773613847672,-168.0,0.00020985,2]
[408435208,1773613847682,-13524.708,0.00021,2]
[408435209,1773613847691,-807.667,0.00021,2]
[408435210,1773613847700,-168.0,0.00021041,2]
[408435211,1773613847709,-168.0,0.00021058,2]
[408435212,1773613847718,-166.66,0.00021087,2]
[408435213,1773613847727,-350.0,0.00021194,2]
[408435214,1773613847735,-2725.84,0.00021204,2]
[408435215,1773613847744,-168.0,0.00021403,2]
[408435216,1773613847754,-402.66,0.00021428,2]
[408435217,1773613847764,-350.0,0.00021455,3]
[408435218,1773613847773,-153.96,0.00021657,2]
[408435219,1773613847783,-166.66,0.00021721,2]
[408435220,1773613847792,-469.87233333,0.00021783,2]
[408435221,1773613847801,-160.0,0.00021783,2]
[408435222,1773613847811,-2500.0,0.00021917,2]
[408435223,1773613847820,-301.1819844,0.00021917,2]
[408435224,1773613847829,-5000.0,0.00021918,2]
[408435225,1773613847838,-156.97,0.00021918,2]
[408435226,1773613847848,-151.0,0.00021918,2]
[408435227,1773613847857,-261.654056,0.00021918,2]
[408435228,1773613847866,-2000.0,0.00022264,2]
[408435229,1773613847876,-499979.8023071,0.00022305,2]
[408435230,1773613847885,-3201.6009141,0.00022305,2]
[408435231,1773613847894,-9588.2477861,0.00022305,2]
[408435232,1773613847903,-109285.3828476,0.00022305,2]
[408435233,1773613847913,-151.0,0.00022305,2]
[408435234,1773613847921,-2515.951026,0.00022305,2]
[408435235,1773613847930,-2515.951026,0.00022305,2]
[408435236,1773613847939,-2515.951026,0.00022305,2]
[408435237,1773613847948,-2515.951026,0.00022305,2]
[408435238,1773613847957,-151.0,0.00022305,2]
[408435239,1773613847966,-8009.3567182,0.00022307,2]
[408435240,1773613847976,-1410.3390574,0.00022307,2]
[408435241,1773613847985,-5714.0980718,0.00022307,2]
[408435242,1773613847995,-4846.4681633,0.00022307,2]
[408435243,1773613848004,-166.66,0.00022354,2]
[408435244,1773613848013,-196.25165977,0.00022373,2]
[408435245,1773613848023,-500.0,0.00022373,2]
[408435246,1773613848031,-567.28130547,0.00022373,2]
[408435247,1773613848041,-500.0,0.00022373,2]
[408435248,1773613848050,-150.23101527,0.00022373,2]
[408435249,1773613848059,-500.0,0.00022373,2]
[408435250,1773613848068,-153.96,0.00022515,2]
[408435251,1773613848077,-18937.92,0.00022562,2]
[408435252,1773613848085,-332.41,0.00022562,2]
[408435253,1773613848094,-417.18,0.00022562,2]
[408435254,1773613848103,-150.99,0.00022562,2]
[408435255,1773613848112,-1617.07,0.00022562,2]
[408435256,1773613848122,-9999.99,0.00022562,2]
[408435257,1773613848131,-7803.97,0.00022562,2]
[408435258,1773613848140,-2917.19,0.00022562,2]
[408435259,1773613848149,-4999.99,0.00022562,2]
[408435260,1773613848159,-3200.52,0.00022562,2]
[408435261,1773613848168,-150.99,0.00022562,2]